Cogmind - Beta 14 @@@ ROGUE MODE // 2024.10.06 @ 12:47:56 Player: Zaros426 Result: Smashed by cave-in Performance ------------- Evolutions (3) 1500 Regions Visited (11) 2200 Robots Destroyed (311) 1555 Value Destroyed (8998) 8998 Prototype IDs (48) 960 Alien Tech Used (0) 0 Bonus (3993) 3993 TOTAL SCORE: 19206 Bonus ------- High Alert Combat Kills 2262 Follower Combat Kills 271 Entered Garrisons 400 Used RIF Installer 1000 Aligned with FarCom 300 Friendly Fire -240 Cogmind --------- Core Integrity 0/700 Matter 186/300 Energy 100/100 System Corruption 8% Temperature Cool (0) Movement Rolling (195) Ox7 Location -7/Factory Parts ------- > --- POWER (1) -------- (None) > --- PROPULSION (5) --- Armored Wheel > --- UTILITY (3) ------ Huge Storage Unit Advanced Targeting Computer Hacking Suite > --- WEAPON (4) ------- Enhanced Autogun Enhanced Autogun Enhanced Autogun Enhanced Coil Gun > --- INVENTORY (25) --- Coolant Injector Trap Scanner Improved Signal Interpreter Terrain Scan Processor Seismic Detector Active Cooling Armor Shield Generator Relay Coupler [Specialist] (22) Relay Coupler [Behemoth] (9) Dynamic Insulation System Improved Recalibrator Guided Plasma Cannon Precision Assault Rifle Improved Heavy Machine Gun Enhanced Coil Gun XL Autogun Array Datajack Plasma Cutter Heavy Flail Peak State ------------ > --- POWER ------------ Improved Deuterium Engine > --- PROPULSION ------- Light Treads Advanced Treads Experimental Flexi-carbon Leg Wheel > --- UTILITY ---------- Huge Storage Unit Advanced Targeting Computer Hardened Medium Armor Plating > --- WEAPON ----------- Precision Assault Rifle Enhanced Coil Gun Enhanced Coil Gun Enhanced Coil Gun > --- INVENTORY -------- Coolant Injector Trap Scanner Improved Signal Interpreter Terrain Scan Processor Seismic Detector Improved Light Armor Plating Active Cooling Armor Shield Generator Relay Coupler [Specialist] Relay Coupler [Behemoth] Dynamic Insulation System Tractor Beam Improved Recalibrator Guided Plasma Cannon Gauss Rifle Improved Heavy Machine Gun XL Autogun Array Datajack Plasma Cutter Heavy Flail [Rating: 62] Favorites ----------- Power Improved Ion Engine Engine Improved Ion Engine Power Core Light Nuclear Core Propulsion Improved Treads Treads Improved Treads Leg Experimental Flexi-carbon Leg Wheel Wheel Hover Unit Cooled Airjet Flight Unit Cooled Nuclear Pulse Thruster Utility Huge Storage Unit Device Cooling System Storage Huge Storage Unit Processor Advanced Targeting Computer Hackware Hacking Suite Protection Medium Armor Plating Weapon Autogun Energy Gun Advanced Beam Rifle Energy Cannon Guided Plasma Cannon Ballistic Gun Autogun Launcher Advanced EMP Blaster Special Weapon Mining Laser Impact Weapon Flail Special Melee Weapon Datajack Build | -11 -10 -10 -9 -9 -9 -8 -8 -8 -8 -8 -7 ------- Run | Yrd Mat Min Mat Min Exi Min Mat Gar Mat Gar Fac Slots Evolved 6 | . . . 2 . . . 2 . . . 2 Power . | . . . . . . . . . . . . Propulsion 3 | . . . . . . . 2 . . . 1 Utility 1 | . . . . . . . . . . . 1 Weapon 2 | . . . 2 . . . . . . . . Parts Attached 191 | 8 16 . 24 1 2 2 8 20 15 11 84 Power 21 | 1 2 . 3 . . 1 1 1 2 2 8 Engine 13 | 1 2 . 3 . . 1 . 1 2 . 3 Core 8 | . . . . . . . 1 . . 2 5 Reactor . | . . . . . . . . . . . . Propulsion 48 | 2 2 . 10 . . . 3 4 1 1 25 Treads 34 | 2 2 . 10 . . . 3 3 1 1 12 Leg 2 | . . . . . . . . . . . 2 Wheel 9 | . . . . . . . . 1 . . 8 Hover 2 | . . . . . . . . . . . 2 Flight 1 | . . . . . . . . . . . 1 Utility 33 | 2 2 . 2 . . 1 1 3 1 4 17 Device 13 | 1 . . . . . 1 . 1 . 1 9 Storage 5 | 1 1 . 2 . . . . . 1 . . Processor 2 | . . . . . . . . . . . 2 Hackware 9 | . 1 . . . . . . 1 . 3 4 Protection 4 | . . . . . . . 1 1 . . 2 Artifact . | . . . . . . . . . . . . Weapon 89 | 3 10 . 9 1 2 . 3 12 11 4 34 Energy Gun 13 | 2 2 . 1 . . . . 4 3 . 1 Energy Cannon 3 | . . . . . . . 1 1 1 . . Ballistic Gun 58 | 1 6 . 6 1 2 . 2 4 5 2 29 Ballistic Cannon . | . . . . . . . . . . . . Launcher 1 | . . . . . . . . . 1 . . Special Weapon 2 | . 2 . . . . . . . . . . Impact Weapon 7 | . . . 2 . . . . 3 1 . 1 Slashing Weapon . | . . . . . . . . . . . . Piercing Weapon . | . . . . . . . . . . . . Special Melee Weapon 5 | . . . . . . . . . . 2 3 Unidentified Prototypes 12 | . . . 1 . . . . 1 1 . 9 Parts Lost 44 | . 1 . . 1 . 1 4 4 1 1 31 Power 6 | . . . . . . . 1 . . 1 4 Propulsion 20 | . . . . . . . 1 2 1 . 16 Utility 4 | . . . . . . 1 1 . . . 2 Weapon 14 | . 1 . . 1 . . 1 2 . . 9 Highest Loss Streak 14 | . 1 . . 1 . 1 4 1 1 1 14 To Critical Strikes 1 | . . . . . . . . . . . 1 Average Slot Usage (%) 98 | . 99 100 100 100 100 99 97 99 99 99 93 Engine 9 | . 14 14 11 11 11 11 3 6 9 7 4 Treads 25 | . 28 28 22 22 22 22 36 35 36 36 16 Wheel 2 | . . . . . . . . . . . 14 Device 3 | . 2 . . . . 3 3 6 9 7 4 Storage 10 | . 14 14 11 11 11 11 9 9 9 9 7 Hackware 6 | . 11 14 11 11 11 6 . . . 1 3 Energy Gun 7 | . 19 . . . . . . 6 24 27 5 Ballistic Gun 28 | . 7 28 43 44 44 44 35 28 11 7 22 Peak Build Rating 62 | 7 13 13 23 23 26 26 35 35 37 39 62 Average Rating 28 | 5 9 13 19 22 25 25 28 30 35 37 50 On Entrance 22 | . 7 13 13 23 23 26 26 30 33 37 39 Naked Turns . | . . . . . . . . . . . . Heaviest Build 117 | 14 31 31 99 99 99 100 107 111 99 98 117 Greatest Support 114 | 40 40 40 46 46 46 46 92 92 92 92 114 Greatest Overweight (x) 11 | . . . 2 2 2 2 1 8 1 1 11 Average Overweight (x) 1 | . . . . 2 2 2 1 1 1 . 2 Largest Inventory Capacity 25 | 8 15 15 25 25 25 25 25 25 25 25 25 Average Capacity 22 | 7 13 15 17 25 25 25 25 25 25 25 25 Most Carried 25 | 3 15 15 25 25 25 25 24 25 25 25 25 Average Carried 21 | 1 11 14 17 24 24 25 21 24 24 24 23 Final Capacity 25 | 8 15 15 25 25 25 25 25 25 25 25 25 Final Carried 25 | 3 15 15 25 25 25 25 23 24 25 25 24 Class Distribution -------------------- 34% | Gunner 33% | Skirmisher 15% | Mutant 5% | Scavenger-Gunner 3% | Scavenger-Tank 3% | Bothacker-Gunner Dominant Class ---------------- Mutant | -10/Materials Mutant | -10/Mines Gunner | -9/Materials Gunner | -9/Mines Gunner | -9/Exiles Skirmisher | -8/Mines Skirmisher | -8/Materials Skirmisher | -8/Garrison Skirmisher | -8/Materials Skirmisher | -8/Garrison Scavenger-Gunner | -7/Factory Resources | -11 -10 -10 -9 -9 -9 -8 -8 -8 -8 -8 -7 ----------- Run | Yrd Mat Min Mat Min Exi Min Mat Gar Mat Gar Fac Matter Collected 7596 | 292 292 28 1840 139 . 361 779 602 420 127 2716 Remotely . | . . . . . . . . . . . . Salvage Created 12176 | 130 1027 19 2798 86 . 396 1292 736 1270 186 4236 Parts 719 | 7 80 1 183 7 . 23 61 36 70 21 230 Haulers Intercepted 17 | . 2 . 6 . . . 2 . 4 . 3 Recyclers Shooed 8 | . 2 . . . . . . . 1 . 5 Parts Field Recycled . | . . . . . . . . . . . . Retrieved Matter . | . . . . . . . . . . . . Parts Self-Destructed . | . . . . . . . . . . . . Prevented . | . . . . . . . . . . . . Kills | -11 -10 -10 -9 -9 -9 -8 -8 -8 -8 -8 -7 ------- Run | Yrd Mat Min Mat Min Exi Min Mat Gar Mat Gar Fac Combat Hostiles Destroyed 201 | . 22 . 53 5 . 7 18 12 16 9 59 Guns 195 | . 21 . 50 5 . 7 17 12 16 9 58 AOE 6 | . 1 . 3 . . . 1 . . . 1 Classes Destroyed 18 | 2 7 . 3 1 . 1 . . . . 4 Worker 26 | . 1 . 5 . . 1 5 . 5 . 9 Builder 21 | . 2 . 2 . . 1 2 . 1 . 13 Tunneler 7 | 3 . 1 . 1 . . . . 1 . 1 Hauler 17 | . 2 . 6 . . . 2 . 4 . 3 Recycler 21 | 1 2 . 4 . . . 3 . 2 . 9 Mechanic 2 | . . . 1 . . . . . . . 1 Operator 9 | . 3 . 2 . . . 1 . 2 . 1 Watcher 19 | . 3 . 5 . . . 1 . 5 . 5 Swarmer 56 | . 12 . 14 4 . . 2 3 7 7 7 Grunt 93 | . 10 . 26 . . 5 9 5 3 2 33 Brawler 9 | . . . 3 . . 1 4 . . . 1 Duelist 6 | . . . . . . 1 2 1 . . 2 Protector 3 | . . . . . . . . . . . 3 Sentry 27 | . . . 10 . . . 1 3 6 . 7 Demolisher 1 | . . . . 1 . . . . . . . Hunter 4 | . . . . . . . . . . . 4 Programmer 2 | . . . . . . . . . . . 2 Heavy 1 | . . . . . . . . . . . 1 Best Kill Streak 12 | 3 6 1 9 4 . 3 12 3 5 5 11 Combat Bots Only 6 | . 6 . 5 4 . 3 5 3 4 5 6 Max Kills in Single Turn 6 | 2 2 1 3 1 . 2 6 1 2 2 4 Gunslinging 1 | . 1 . 1 . . 1 . . 1 1 1 Exploded 3 | . 1 . 3 . . . 1 . . . 1 Melee . | . . . . . . . . . . . . Uniques/NPCs Destroyed . | . . . . . . . . . . . . Combat | -11 -10 -10 -9 -9 -9 -8 -8 -8 -8 -8 -7 -------- Run | Yrd Mat Min Mat Min Exi Min Mat Gar Mat Gar Fac Hostile Shots Fired 905 | . 85 . 72 15 . 15 62 29 21 30 576 Missed 282 | . 19 . 14 4 . 4 17 8 7 7 202 Damage Taken 8840 | . 606 . 788 227 . 191 763 455 176 256 5378 Core 1162 | . 86 . 199 . . 79 33 43 . 6 716 Absorbed by Shields 364 | . . . . . . . . . . 10 354 Core Remaining (%) 70 | 100 . 65 . . . 30 . . . 85 . Volleys Fired 606 | 12 73 1 100 9 . 20 47 71 48 34 191 Largest 4 | 2 2 2 4 4 . 4 4 4 4 4 4 Hottest 246 | 70 100 46 92 92 . 92 120 168 246 208 208 Shots Fired 1909 | 24 140 2 400 35 . 80 180 162 187 58 641 Gun 1901 | 24 135 2 400 35 . 80 178 161 187 58 641 Cannon 3 | . . . . . . . 2 1 . . . Launcher . | . . . . . . . . . . . . Special 5 | . 5 . . . . . . . . . . Kinetic 1448 | 12 52 2 400 35 . 80 178 108 65 8 508 Thermal 401 | 12 28 . . . . . 2 54 122 50 133 Explosive . | . . . . . . . . . . . . Electromagnetic 60 | . 60 . . . . . . . . . . Robot Hit Streak 34 | 8 13 1 13 9 . 5 11 22 10 7 34 Robot Miss Streak 8 | 3 5 1 7 2 . 2 3 6 7 5 8 Penetration Max 1 | . . . . . . . . . . . 1 Secondary Targets 47 | . 3 . 6 1 . 4 8 . 2 4 19 Max Gunslinging Chain 2 | . 1 . 1 1 . 1 1 . 1 2 2 Shots Hit Robots 1091 | 17 78 1 216 23 . 46 106 97 91 24 392 Core Hits 519 | 7 47 1 105 8 . 21 56 34 47 14 179 Critical Kills 1 | . . . . . . . . . . . 1 Critical Parts Destroyed 14 | . . . 2 1 . . . . 1 . 10 Critical Strikes 30 | . 2 . 2 1 . . . 1 4 . 20 Burn 14 | . 1 . . . . . . 1 3 . 9 Destroy 15 | . . . 2 1 . . . . 1 . 11 Corrupt 1 | . 1 . . . . . . . . . . Melee Attacks 40 | . . . 2 . . . . 11 2 10 15 Impact 18 | . . . 2 . . . . 11 2 . 3 Slashing . | . . . . . . . . . . . . Piercing . | . . . . . . . . . . . . Sneak Attacks 7 | . . . . . . . . . 1 2 4 Combat Hostiles 1 | . . . . . . . . . . . 1 Follow-up Attacks . | . . . . . . . . . . . . Damage Inflicted 22387 | 172 1060 16 3891 364 . 731 2239 1756 1708 444 10006 Guns 20676 | 172 970 16 3475 364 . 731 1732 1722 1666 444 9384 Cannons 105 | . . . . . . . 71 34 . . . Explosions 1537 | . 90 . 416 . . . 436 . . . 595 Melee 42 | . . . . . . . . . 42 . . Ramming 27 | . . . . . . . . . . . 27 Kinetic 15974 | 70 262 16 3475 364 . 731 1732 1020 557 103 7644 Thermal 5835 | 102 289 . 416 . . . 507 736 1109 341 2335 Explosive . | . . . . . . . . . . . . Electromagnetic 509 | . 509 . . . . . . . . . . Impact 42 | . . . . . . . . . 42 . . Slashing . | . . . . . . . . . . . . Piercing . | . . . . . . . . . . . . Highest Corruption 8 | . . . . . . 5 . . . . 8 Average Corruption 4 | . . . . . . 5 . . . . 4 Corruption Purged . | . . . . . . . . . . . . Corruption Blocked . | . . . . . . . . . . . . Effects 62 | . . . . . . 12 . . . . 50 Message Errors 13 | . . . . . . 3 . . . . 10 Matter Fused 14 | . . . . . . 1 . . . . 13 Heat Flow Errors 9 | . . . . . . 3 . . . . 6 Energy Discharges 3 | . . . . . . . . . . . 3 Parts Fused 2 | . . . . . . 1 . . . . 1 Data Loss (minor) 6 | . . . . . . 3 . . . . 3 Data Loss (major) 6 | . . . . . . . . . . . 6 Misfires 1 | . . . . . . . . . . . 1 Alerts 2 | . . . . . . 1 . . . . 1 Weapon Failures 6 | . . . . . . . . . . . 6 Overload Shots . | . . . . . . . . . . . . Overflow Damage 273 | . . . 16 . . . 71 14 2 . 170 Projectiles 14 | . . . . . . . . 14 . . . Explosions 257 | . . . 16 . . . 71 . . . 170 Melee 2 | . . . . . . . . . 2 . . Knockbacks . | . . . . . . . . . . . . Impact . | . . . . . . . . . . . . Kinetic . | . . . . . . . . . . . . Secondary . | . . . . . . . . . . . . Self-Inflicted Damage 473 | . . . 132 . . . . . . . 341 Shots 7 | . . . 2 . . . . . . . 5 Rammed 2 | . . . . . . . . . . . 2 Targets Rammed 2 | . . . . . . . . . . . 2 Kicked . | . . . . . . . . . . . . Crushed . | . . . . . . . . . . . . Highest Temperature 365 | 160 192 6 365 126 . 236 306 208 227 226 338 Average Temperature 75 | 71 44 4 71 51 . 105 72 72 57 77 92 Received Heat Transfer 2807 | . 132 . 222 . . 99 387 198 36 72 1661 Effects 1 | . . . . . . . . . . . 1 Energy Bleed 1 | . . . . . . . . . . . 1 Siege Activations . | . . . . . . . . . . . . Robots Corrupted 1 | . . . . . . . . . 1 . . Combat Hostiles . | . . . . . . . . . . . . Parts Fried 2 | . 2 . . . . . . . . . . Impact Corruptions 1 | . . . . . . . . . 1 . . Robots Melted 1 | . . . . . . . . 1 . . . Combat Hostiles . | . . . . . . . . . . . . Parts Melted 18 | . 3 . . . . 2 . 1 6 . 6 Heat Transferred 10824 | 296 766 . 300 . . . 610 1449 2368 666 4369 Parts Sabotaged . | . . . . . . . . . . . . Parts Stolen . | . . . . . . . . . . . . Parts Stripped . | . . . . . . . . . . . . Power Chain Reactions 2 | . 2 . . . . . . . . . . Alert | -11 -10 -10 -9 -9 -9 -8 -8 -8 -8 -8 -7 ------- Run | Yrd Mat Min Mat Min Exi Min Mat Gar Mat Gar Fac Peak Influence 1863 | 20 444 131 1173 553 . 111 598 925 610 792 1863 Initial 450 | . 13 126 . 438 . . . 263 450 274 415 Average 524 | 9 287 61 745 321 . 33 305 578 448 587 1012 Maximum Alert Level 5 | . 2 . 4 2 . . 2 3 2 3 5 Low Security (%) 21 | 100 20 100 8 15 . 100 32 . . . . Level 1 19 | . 61 . 9 56 . . 26 17 19 12 1 Level 2 33 | . 18 . 19 28 . . 40 50 80 74 28 Level 3 16 | . . . 46 . . . . 31 . 12 27 Level 4 9 | . . . 15 . . . . . . . 39 Level 5 . | . . . . . . . . . . . 3 High Security . | . . . . . . . . . . . . Max Security . | . . . . . . . . . . . . Sterilizations 1 | . . . 1 . . . . . . . . Squads Dispatched 39 | . 5 . 8 . . . 4 . 3 . 19 Investigation 12 | . 4 . 4 . . . . . 2 . 2 Extermination 1 | . . . . . . . . . . . 1 Reinforcement 12 | . 1 . 2 . . . 1 . . . 8 Assault 5 | . . . 2 . . . . . . . 3 Garrison 9 | . . . . . . . 3 . 1 . 5 Intercept . | . . . . . . . . . . . . Searches Triggered . | . . . . . . . . . . . . Construction Impeded 3 | . . . 1 . . . . . . . 2 Haulers Reinforced 2 | . . . . . . . . . . . 2 Active Scanning Responses . | . . . . . . . . . . . . Cargo Convoy Interrupts 1 | . . . . . . . . . . . 1 Stealth | -11 -10 -10 -9 -9 -9 -8 -8 -8 -8 -8 -7 --------- Run | Yrd Mat Min Mat Min Exi Min Mat Gar Mat Gar Fac Distress Signals 13 | . 1 . 2 . . . 2 . 3 . 5 Communications Jammed . | . . . . . . . . . . . . Distress Signals . | . . . . . . . . . . . . Times Spotted 299 | . 28 . 71 5 . 9 23 12 27 15 109 Peak Tracking Total 12 | . 3 . 6 3 . 3 6 3 4 5 12 Tactical Retreats 7 | . . . 2 . . . . . . . 5 Traps | -11 -10 -10 -9 -9 -9 -8 -8 -8 -8 -8 -7 ------- Run | Yrd Mat Min Mat Min Exi Min Mat Gar Mat Gar Fac Traps Triggered 14 | . 2 . 1 . . . . 5 . 2 4 Indirectly . | . . . . . . . . . . . . Trap Hack Attempts . | . . . . . . . . . . . . Triggered . | . . . . . . . . . . . . Disarmed . | . . . . . . . . . . . . Reprogrammed . | . . . . . . . . . . . . Reused . | . . . . . . . . . . . . Traps Extracted . | . . . . . . . . . . . . Installed 4 | . . . . . . . . . 4 . . Triggered . | . . . . . . . . . . . . Most Traps Carried 4 | . . . . . . . . 4 4 . . Machines | -11 -10 -10 -9 -9 -9 -8 -8 -8 -8 -8 -7 ---------- Run | Yrd Mat Min Mat Min Exi Min Mat Gar Mat Gar Fac Machines Disabled 46 | . 1 . 7 1 . . 6 4 3 2 22 Max in Single Turn 7 | . 1 . 2 1 . . 3 1 1 1 7 Garrison Access 2 | . . . . . . . . . . . 2 Garrison Relay 6 | . . . . . . . . 4 . 2 . Machines Repaired . | . . . . . . . . . . . . Machines Dismantled . | . . . . . . . . . . . . Machines Sabotaged . | . . . . . . . . . . . . Overloaded Fab Kills . | . . . . . . . . . . . . Hacking | -11 -10 -10 -9 -9 -9 -8 -8 -8 -8 -8 -7 --------- Run | Yrd Mat Min Mat Min Exi Min Mat Gar Mat Gar Fac Machines Accessed 49 | . 9 . 13 . 3 . 2 2 9 1 10 Terminals 32 | . 7 . 9 . . . 1 2 7 1 5 Fabricators 2 | . . . . . . . . . . . 2 Repair Stations . | . . . . . . . . . . . . Recycling Units 6 | . 2 . 2 . . . . . 1 . 1 Scanalyzers 2 | . . . 2 . . . . . . . . Garrison Access 4 | . . . . . . . 1 . 1 . 2 Total Hacks 167 | . 29 . 43 . 33 . 8 4 24 2 24 Successful 99 | . 16 . 27 . 33 . 3 1 9 1 9 Failed 66 | . 12 . 15 . . . 5 3 15 1 15 Catastrophic 12 | . 1 . . . . . 1 . 6 . 4 Database Lockouts 2 | . 1 . 1 . . . . . . . . Manual 77 | . 29 . 22 . 1 . 3 . 10 . 12 Terminals 104 | . 27 . 32 . . . 6 4 22 2 11 Fabricators 4 | . . . . . . . . . . . 4 Repair Stations . | . . . . . . . . . . . . Recycling Units 7 | . 2 . 2 . . . . . 1 . 2 Scanalyzers 9 | . . . 9 . . . . . . . . Garrison Access 10 | . . . . . . . 2 . 1 . 7 Terminal Hacks 64 | . 8 . 10 . 33 . 1 1 7 1 3 Record 32 | . . . . . 32 . . . . . . Robot Schematic 4 | . 3 . 1 . . . . . . . . Robot Analysis 10 | . 3 . 5 . . . . . 2 . . Prototype ID Bank 8 | . 2 . 2 . . . 1 . 2 . 1 Branch Access Points 1 | . . . . . . . . . . . 1 Emergency Access Points 2 | . . . . . . . . 1 . 1 . Unreport Threat 3 | . . . 1 . . . . . 2 . . Locate Traps 3 | . . . 1 . . . . . 1 . 1 Derelict Proto ID Bank 1 | . . . . . 1 . . . . . . Fabricator Hacks 2 | . . . . . . . . . . . 2 Network Status 2 | . . . . . . . . . . . 2 Repair Station Hacks . | . . . . . . . . . . . . Recycling Unit Hacks . | . . . . . . . . . . . . Scanalyzer 9 | . . . 9 . . . . . . . . Insert Component 4 | . . . 4 . . . . . . . . Analyze 5 | . . . 5 . . . . . . . . Garrison Access Hacks 4 | . . . . . . . 1 . 1 . 2 Unlock Access 2 | . . . . . . . 1 . 1 . . Seal Access 2 | . . . . . . . . . . . 2 Unauthorized Hacks 20 | . 8 . 8 . . . 1 . 1 . 2 Terminals 13 | . 6 . 6 . . . 1 . . . . Botnet 2 | . 1 . 1 . . . . . . . . Skim 11 | . 5 . 5 . . . 1 . . . . Fabricators 1 | . . . . . . . . . . . 1 Liberate 1 | . . . . . . . . . . . 1 Repair Stations . | . . . . . . . . . . . . Recycling Units 6 | . 2 . 2 . . . . . 1 . 1 Tunnel 6 | . 2 . 2 . . . . . 1 . 1 Scanalyzers . | . . . . . . . . . . . . Garrison Access . | . . . . . . . . . . . . Data Cores Recovered 5 | . 2 . . . . . . . 2 . 1 Used 1 | . . . . . . . . . 1 . . Hacking Detections 37 | . 7 . 11 . . . 2 1 8 1 7 Full Trace Events 7 | . . . 2 . . . 1 1 3 . . Feedback Events . | . . . . . . . . . . . . Feedback Blocked . | . . . . . . . . . . . . Robot Schematics Acquired 4 | . 3 . 1 . . . . . . . . Robots Built . | . . . . . . . . . . . . Authchips . | . . . . . . . . . . . . Time . | . . . . . . . . . . . . Total Robot Build Rating . | . . . . . . . . . . . . Part Schematics Acquired 4 | . . . 4 . . . . . . . . Parts Built . | . . . . . . . . . . . . Authchips . | . . . . . . . . . . . . Time . | . . . . . . . . . . . . Total Part Build Rating . | . . . . . . . . . . . . Parts Repaired . | . . . . . . . . . . . . Time . | . . . . . . . . . . . . Parts Recycled . | . . . . . . . . . . . . Recycled Matter . | . . . . . . . . . . . . Retrieved Matter . | . . . . . . . . . . . . Retrieved Components . | . . . . . . . . . . . . Parts Scanalyzed 4 | . . . 4 . . . . . . . . Part Schematics Acquired 4 | . . . 4 . . . . . . . . Parts Damaged . | . . . . . . . . . . . . Bothacking | -11 -10 -10 -9 -9 -9 -8 -8 -8 -8 -8 -7 ------------ Run | Yrd Mat Min Mat Min Exi Min Mat Gar Mat Gar Fac Used RIF Installer 2 | . . . . . . . . 1 . 1 . Hotswap 1 | . . . . . . . . . . 1 . Robots Hacked 11 | . . . . . . . . . . 3 8 Non-combat 3 | . . . . . . . . . . . 3 Combat 8 | . . . . . . . . . . 3 5 Robot Hacks Applied 11 | . . . . . . . . . . 3 8 amplify_resonance 1 | . . . . . . . . . . . 1 reboot_system 1 | . . . . . . . . . . . 1 overwrite_iff 3 | . . . . . . . . . . . 3 streamctrl_high 1 | . . . . . . . . . . . 1 formatsys_high 5 | . . . . . . . . . . 3 2 Relay Couplers Released 24 | . . . . . . . . 15 . 9 . Machine Destruction 24 | . . . . . . . . 15 . 9 . Attached 5 | . . . . . . . . . . 3 2 Fabnet Peak Effective % . | . . . . . . . . . . . . Robots Rewired . | . . . . . . . . . . . . Allies Hacked 1 | . . . . . . . . . . . 1 Hacks Repelled . | . . . . . . . . . . . . Allies | -11 -10 -10 -9 -9 -9 -8 -8 -8 -8 -8 -7 -------- Run | Yrd Mat Min Mat Min Exi Min Mat Gar Mat Gar Fac Total Allies 12 | . . . . 3 . . . . . 3 6 Largest Group 3 | . . . . 3 3 3 . . . 1 2 Highest-Rated Group 142 | . . . . 40 40 40 . . . 21 142 Highest-Rated Ally 107 | . . . . 16 16 16 . . . 21 107 Total Orders . | . . . . . . . . . . . . Ally Attacks 50 | . . . . . . 17 . . . 7 26 Total Damage 1026 | . . . . . . 215 . . . 166 645 Kills 11 | . . . . . . 2 . . . 3 6 Allies Corrupted . | . . . . . . . . . . . . Allies Melted . | . . . . . . . . . . . . Intel | -11 -10 -10 -9 -9 -9 -8 -8 -8 -8 -8 -7 ------- Run | Yrd Mat Min Mat Min Exi Min Mat Gar Mat Gar Fac Robot Analysis Total 10 | . 3 . 5 . . . . . 2 . . Derelict Logs Recovered 4 | . . 2 . 2 . . . . . . . Drone Launches . | . . . . . . . . . . . . Drone Recoveries . | . . . . . . . . . . . . Exploration | -11 -10 -10 -9 -9 -9 -8 -8 -8 -8 -8 -7 ------------- Run | Yrd Mat Min Mat Min Exi Min Mat Gar Mat Gar Fac Turns Passed 16244 | 165 1549 826 2424 1426 1380 1251 429 1349 1592 1254 2599 Spaces Moved 6433 | 72 785 512 1018 437 429 374 122 455 535 480 1214 Core 2 | 2 . . . . . . . . . . . Treads 5518 | 70 785 512 1018 437 429 374 122 450 535 480 306 Legs . | . . . . . . . . . . . . Wheels 913 | . . . . . . . . 5 . . 908 Hover . | . . . . . . . . . . . . Flight . | . . . . . . . . . . . . Fastest Speed 50 | 50 160 160 160 320 320 320 240 210 240 160 120 Average Speed 212 | 156 160 160 196 320 320 320 240 239 240 230 145 Slowest Speed 560 | 160 160 160 320 320 320 320 240 240 240 240 560 Overloaded Moves . | . . . . . . . . . . . . Propulsion Burnouts . | . . . . . . . . . . . . Robots Hopped . | . . . . . . . . . . . . Cave-ins Triggered 1 | . . . . . . . . . . . 1 Exploration Rate (%) 64 | 6 98 92 95 92 90 70 20 58 54 52 45 Regions Visited 11 Branch Regions 4 Pre-discovered Areas 10 | . 2 . 3 2 1 . . . 1 . 1 Known Exits Taken 6 | . . 1 1 1 . 1 1 . 1 . . Unknown Exits Taken 3 | 1 1 . . . 1 . . . . . . Scrap Searched 4 | . . 1 . 2 . 1 . . . . . Spaces Dug 80 | . 5 . 2 . . . . 3 1 . 69 Terrain Destroyed 274 | . 10 . 66 . . . 4 3 1 . 190 Melee 6 | . . . 2 . . . . 3 1 . . Projectile 135 | . 5 . . . . . . . . . 130 AOE 133 | . 5 . 64 . . . 4 . . . 60 Terrain Rammed . | . . . . . . . . . . . . Walls Destroyed . | . . . . . . . . . . . . Machines Disabled . | . . . . . . . . . . . . Actions | -11 -10 -10 -9 -9 -9 -8 -8 -8 -8 -8 -7 --------- Run | Yrd Mat Min Mat Min Exi Min Mat Gar Mat Gar Fac Total 7854 | 99 944 518 1276 451 439 396 179 600 734 581 1637 Wait 352 | 5 17 4 95 4 2 . . 17 104 29 75 Move 6423 | 71 784 511 1017 436 428 373 121 454 535 479 1214 Hop . | . . . . . . . . . . . . Pick Up 105 | 3 30 1 18 1 2 . 3 11 11 6 19 Fast Attach 56 | 7 4 . . . . 1 1 1 4 2 36 Attach 38 | . 1 . 3 1 . . 5 6 1 2 19 Detach 5 | . . . . . . . . 1 . . 4 Swap 97 | 1 11 . 21 . 2 1 2 13 10 7 29 Drop 113 | . 24 1 20 . 5 1 . 7 15 8 32 Fire 606 | 12 73 1 100 9 . 20 47 71 48 34 191 Melee 40 | . . . 2 . . . . 11 2 10 15 Ram 2 | . . . . . . . . . . . 2 Kick . | . . . . . . . . . . . . Crush . | . . . . . . . . . . . . Escape Stasis 11 | . . . . . . . . 8 . 3 . Rewire 2 | . . . . . . . . . . 1 1 Trap 4 | . . . . . . . . . 4 . . Miscellaneous . | . . . . . . . . . . . . Route ------- -11/Scrapyard -10/Materials (discovered 4 exits: *Mat x3 / [*Min]) -10/Mines (discovered 3 exits: *Mat x2 / Sub) -9/Materials (discovered 5 exits: *Mat x3 / *Min x2) -9/Mines (discovered 3 exits: *Mat x2 / *Exi) -9/Exiles -8/Mines -8/Materials -8/Garrison (discovered 2 exits: *Mat x2) -8/Materials -8/Garrison -7/Factory (discovered 3 exits: Sto / Low x2) History --------- Turn | Location | Event 17 | -11/Scrapyard | Discovered new exit (range 16) 166 | -11/Scrapyard | Entered Materials 262 | -10/Materials | Discovered new exit (range 16) 300 | -10/Materials | Build established: Mutant 606 | -10/Materials | Discovered new exit (range 8) 961 | -10/Materials | Discovered new exit (range 9) 1253 | -10/Materials | Central database locked down 1346 | -10/Materials | Identified exit to Materials 1376 | -10/Materials | Learned location of 2 exits from Mines 1397 | -10/Materials | Learned 4 Recycling zone layouts 1426 | -10/Materials | Learned Storage garrison access intel 1715 | -10/Materials | Entered Mines 1717 | -10/Mines | Identified exit to Subcaves 1744 | -10/Mines | Learned location of 1 exit from Materials 2541 | -10/Mines | Entered Materials 2541 | -9/Materials | Evolved 2 slots: Weapon x2 2542 | -9/Materials | Identified exit to Mines 2832 | -9/Materials | Build established: Gunner 3173 | -9/Materials | Discovered new exit (range 16) 3341 | -9/Materials | First assault squad dispatched 3620 | -9/Materials | Learned location of 1 exit from Recycling 3701 | -9/Materials | Learned location of Zion (-6) 3729 | -9/Materials | Learned 2 Storage zone layouts 3758 | -9/Materials | Identified exit to Materials 3808 | -9/Materials | Learned Storage stockpile data 4177 | -9/Materials | Central database locked down 4633 | -9/Materials | Sterilization system engaged 4633 | -9/Materials | Non-combat units ordered to evacuate 4733 | -9/Materials | Combat units ordered to evacuate 4933 | -9/Materials | Ambient heat levels rising (+10) 4965 | -9/Materials | Entered Mines 4967 | -9/Mines | Identified exit to Exiles 5083 | -9/Mines | Assembled infested the area 5161 | -9/Mines | Met 8R-AWN 5290 | -9/Mines | Learned location of Storage (-7) 5818 | -9/Mines | Assisted by bots powering up and referring to "LRC-V3" 6391 | -9/Mines | Entered Exiles 6391 | -9/Exiles | Accompanied by 3 allies 6468 | -9/Exiles | Welcomed by 8R-AWN 6519 | -9/Exiles | Learned about 8R-AWN's background 6523 | -9/Exiles | Met EX-HEX 6622 | -9/Exiles | Met EX-BIN 6660 | -9/Exiles | Aligned with FarCom system 6663 | -9/Exiles | Given EX-Vault access code 6769 | -9/Exiles | Opened EX-Vault 6793 | -9/Exiles | Found Gui. Plasma Cannon 6804 | -9/Exiles | Found XL Autogun Array 6873 | -9/Exiles | Warned to stay clear of 0b10 Research branches 6969 | -9/Exiles | Met EX-DEC 7254 | -9/Exiles | Visited The Gauntlet 7737 | -9/Exiles | Discovered new exit (range 10) 7771 | -9/Exiles | Stole two prototypes: Gui. Plasma Cannon, XL Autogun Array 7771 | -9/Exiles | Entered Mines 7771 | -8/Mines | Accompanied by 3 allies 7773 | -8/Mines | Core integrity fell below 50% 7854 | -8/Mines | Discovered exit to Materials (range 8) 8070 | -8/Mines | Build established: Skirmisher 9022 | -8/Mines | Entered Materials 9022 | -8/Materials | Evolved 2 slots: Propulsion x2 9150 | -8/Materials | Garrison activated, responded to threat 9243 | -8/Materials | Lost 4 parts (1p1n1u1w) 9423 | -8/Materials | Identified exit to Garrison 9451 | -8/Materials | Entered Garrison 9603 | -8/Garrison | Triggered checkpoint 9676 | -8/Garrison | Garrison Relay disabled 9813 | -8/Garrison | Triggered checkpoint 9883 | -8/Garrison | Garrison Relay disabled 9885 | -8/Garrison | Discovered new exit (range 12) 10025 | -8/Garrison | Triggered checkpoint 10157 | -8/Garrison | Garrison Relay disabled 10283 | -8/Garrison | Triggered checkpoint 10365 | -8/Garrison | Triggered checkpoint 10501 | -8/Garrison | Discovered new exit (range 13) 10572 | -8/Garrison | Garrison Relay disabled 10575 | -8/Garrison | Triggered checkpoint 10627 | -8/Garrison | Installed Relay Interface Framework 10800 | -8/Garrison | Entered Materials 12248 | -8/Materials | Garrison activated, responded to threat 12392 | -8/Materials | Identified exit to Garrison 12392 | -8/Materials | Entered Garrison 12419 | -8/Garrison | Expanded RIF knowledge: Hotswap 12486 | -8/Garrison | Triggered checkpoint 12522 | -8/Garrison | Garrison Relay disabled 12658 | -8/Garrison | Triggered checkpoint 12815 | -8/Garrison | Triggered checkpoint 12869 | -8/Garrison | Discovered new exit (range 11) 12910 | -8/Garrison | Garrison Relay disabled 13432 | -8/Garrison | Triggered checkpoint 13607 | -8/Garrison | Build established: Bothacker-Skirmisher 13646 | -8/Garrison | Entered Factory 13646 | -7/Factory | Accompanied by 1 ally 13646 | -7/Factory | Evolved 2 slots: Propulsion x1, Utility x1 13648 | -7/Factory | FarCom data flow suspended 13945 | -7/Factory | Build established: Bothacker-Gunner 14026 | -7/Factory | Garrison activated, responded to threat 14068 | -7/Factory | Lost 3 allies 14159 | -7/Factory | Garrison activated, responded to threat 14261 | -7/Factory | Cargo convoy interrupted 14395 | -7/Factory | Lost 14 parts (1p5n2u6w) 14485 | -7/Factory | Garrison activated, responded to threat 14496 | -7/Factory | Lost 4 parts (1p2n1w) 14529 | -7/Factory | Found Prototype Protection 14884 | -7/Factory | Build established: Scavenger-Tank 15138 | -7/Factory | Core integrity fell below 50% 15279 | -7/Factory | Build established: Scavenger-Gunner 15484 | -7/Factory | Identified exit to Storage 15484 | -7/Factory | Identified exit to Lower Caves 15646 | -7/Factory | First assault squad dispatched 15993 | -7/Factory | Build established: Gunner 16212 | -7/Factory | Core integrity fell below 20% 16243 | -7/Factory | Lost 7 parts (1p5n1w) 16246 | -7/Factory | Crushed by falling debris 16246 | -7/Factory | Smashed by cave-in Last Messages --------------- 16229_ 7Y QY8WLDLK>3QRNA&CV7VT%REI|0SMO>ZKH 16229_ U-05 Engineer lays Concrete. 16230_ Slug penetrates Y-54 Guardian. 16230_ U-05 Engineer lays Concrete. 16232_ U-05 Engineer builds a Wall. 16232_ U-05 Engineer lays Concrete. 16232_ Slug penetrates Y-54 Guardian. 16232_ Y-54 Guardian destroyed. 16233_ U-05 Engineer lays Concrete. 16235_ U-05 Engineer builds a Wall. 16236_ U-05 Engineer lays Concrete. 16236_ U-05 Engineer builds a Wall. 16237_ U-05 Engineer lays Concrete. 16240_ U-05 Engineer builds a Wall. 16240_ U-05 Engineer builds a Door. 16240_ U-05 Engineer lays Concrete. 16242_ U-05 Engineer builds a Wall. 16245_ U-05 Engineer lays Concrete. 16246_ The unstable cave ceiling collapses. 16246_ Crushed by falling debris. Map ----- +----------------------------------------------------+ | ?????????????????????????????????????????????????? | | ?????????????????????????????????????????????????? | | ?????????????????????????????????????????????????? | | ?????????????????????????????????????????????????? | | ?????????????????????????????????????????????????? | | ?????????????????????????????????????????????????? | | ?????????????????????????????????????????????????? | | ?????????????????????????????????????????????????? | | ?????????????????????????????????????????????????? | | ?????????????????????????????????????????????????? | | ?????????????????????????????????????????????????? | | ?????????????????????????????????????????????????? | | ?????????????????????????????????????????????????? | | ??????????????????????????????????+??????????????? | | ????????????????????????????????? #??????????????? | | ??????????????????????????????#;;;#??????????????? | | ???????????????????????????? #??????????????? | | ??????????????????????????? *[ #??????????????? | | ????????##????????????????? !%= #??????????????? | | ???????# #????????????????? ! #??????????????? | | #########?????????????????T #??????????????? | | #????##############" = #??????????????? | | #????#! #"o #??????????????? | | """" #????# #"* #??????????????? | | """" #????# !%* #??????????????? | | """" #????# @=! #??????????????? | | """" ###??# #?????????H????? | | # ####* #??????????????? | | ! """" #### ; #??????????????? | | """" #??# ; ! #??????????????? | | """" #??# #??????????????? | | """" #?# ] #??????????????? | | #?# #??????????????? | | #+######?## #??????????????? | | ######### ##u # ;;#####??????????????? | | [% = u u ???????????? | | ! [ = ??????????? | | "T = % ??????????? | | "" ???????"??? | | * ?????""" "" | | ????? """ "" | | ????? | | #############+###############" ???????" " "" | | #+#####???# #??????????????????# "T" "" | | ???????# """" """ #??????????????????# """ "" | | """"????????"""" """" #??????????????????# | | """""???????"""" """" ##????????????????######### | | ""??????????"""" """" ##############?##?# [=*=% | | "????????????""" """" # [! #?# ## !%*!! | | ?????????????"" """" # [ #??# # !*=%=% | +----------------------------------------------------+ Best States ------------- Heat Dissipation 56 Coolant Potential 65 Energy Generation 18 Energy Capacity 310 Matter Stores 300 Matter Capacity 300 Sight Range 16 Terrain Scan Density 10 Armor Coverage 225 Evasion (%) 40 Targeting Accuracy 8 Recoil Reduction 5 Offensive Hacking 10 Relay Coupler Types 1 Relay Coupler Value 31 Item Schematics ----------------- Hacking Suite | -9/Materials | Scanalyzed Autogun | -9/Materials | Scanalyzed ECM Suite | -9/Materials | Scanalyzed Shield Generator | -9/Materials | Scanalyzed Robot Schematics ------------------ M-13 Machinist | -10/Materials | Hacked O-16 Technician | -10/Materials | Hacked A-02 Transporter | -10/Materials | Hacked I-25 Savior | -9/Materials | Hacked Fabricated ------------ Nothing Alien Tech Used ----------------- None Achievements -------------- None Challenges ------------ None Game ------ Seed XenonDataTube Manual? 0 Play Time 01:58:07 Cumulative 138.8 hours Start 2024.10.06 @ 10:50:41 End 2024.10.06 @ 12:47:56 Sessions 1 Manual Loads 0 Difficulty Rogue Special Mode None Game No. 68 Rogue 68 Adventurer 0 Explorer 0 Win Type - Total 0 Types 0/0/0/0/0/0/0/0/0 Lore% 49 Gallery% 69 Achievement% 56 Wizard Run 0 Options --------- Layout 0 ASCII 0 Keyboard 0 Movement Mouse Keybinds 0 Fullscreen 1 Font 24/Smallcaps Map View 183x50 Zoom Use 0% Tactical HUD 1 Map Filters NONE Filters NONE Steam 0 RUN: 5c4a6014-710d-4abc-87cb-973d3130c089